lending/lending_fUSD_20240507
["ID","MTS","AMOUNT","RATE_DAILY","PERIOD"]
[326575068,1715115033124,-280.83854349,0.000129,2]
[326575069,1715115033136,-4243.84407077,0.000129,2]
[326575070,1715115033150,-1493.30946859,0.000129,2]
[326575091,1715115038933,-6904.91767507,0.000129,2]
[326575093,1715115038945,-302731.39009751,0.000129,2]
[326575097,1715115038956,-81439.92257402,0.000129,2]
[326575100,1715115038968,-1509.11685064,0.000129,2]
[326575103,1715115038979,-18691.46410349,0.000129,2]
[326575106,1715115038991,-940.51317893,0.000129,2]
[326575294,1715115041095,-406.7734298,0.000129,2]
[326575295,1715115041107,-386.26536328,0.000129,2]
[326575296,1715115041118,-280.26021866,0.000129,2]
[326575297,1715115041130,-1478.532,0.000129,2]
[326575298,1715115041141,-1742.60108313,0.000129,2]
[326575299,1715115041152,-52282.6229664,0.000129,2]
[326575300,1715115041164,-426.27582599,0.000129,2]
[326575301,1715115041175,-2723.68358874,0.000129,2]
[326575302,1715115041186,-18526.95481102,0.000129,2]
[326575303,1715115041198,-840.71707407,0.000129,2]
[326575310,1715115045065,-304.54461836,0.00012254,2]
[326575312,1715115045075,-2171.09538164,0.000129,2]
[326575315,1715115045086,-6341.30930635,0.000129,2]
[326575318,1715115045097,-15013.13114369,0.000129,2]
[326575332,1715115047501,-263.82847369,0.00012899,2]
[326575336,1715115047510,-993.43152631,0.000129,2]
[326575341,1715115047522,-969.10588615,0.000129,2]
[326575347,1715115047535,-905.72771757,0.000129,2]
[326575352,1715115047547,-296.26673161,0.000129,2]
[326575355,1715115047565,-2208.73399991,0.000129,2]
[326575357,1715115047578,-1372.13278,0.000129,2]
[326575359,1715115047589,-306.21779093,0.000129,2]
[326575361,1715115047601,-37886.14156968,0.000129,2]
[326575364,1715115047613,-483.87719183,0.000129,2]
[326575370,1715115059253,190.68189553,5.205e-05,2]
[326575371,1715115065384,251.76218263,5.205e-05,2]
[326575372,1715115117853,1557.16187249,5.205e-05,2]
[326575374,1715115134480,217477.37786756,5.205e-05,2]
[326575382,1715115260946,-155.0,9.99e-05,2]
[326575383,1715115260972,-2325.27290029,9.991e-05,2]
[326575384,1715115260998,-5555.24404801,9.991e-05,2]
[326575385,1715115261023,-3004.89985123,9.992e-05,2]
[326575386,1715115261049,-4421.03246962,9.992e-05,2]
[326575387,1715115261074,-236.92766269,9.993e-05,2]
[326575388,1715115261098,-1246.5281018,9.993e-05,2]
[326575389,1715115261123,-35311.38008095,9.993e-05,2]
[326575390,1715115261147,-370.59505344,9.994e-05,2]
[326575391,1715115261173,-377.47756051,9.994e-05,2]
[326575392,1715115261198,-167.63437116,9.994e-05,2]
[326575393,1715115261225,-5266.7635262,9.994e-05,2]
[326575394,1715115261250,-217.06896693,9.995e-05,2]
[326575395,1715115261275,-409.16208673,0.0001,2]
[326575396,1715115262651,2219.01154752,9.99e-05,2]
[326575398,1715115377114,-5805.34971962,0.00011682,2]
[326575399,1715115377143,-3388.77,0.00011683,2]
[326575400,1715115377170,-1460.77655516,0.00011684,2]
[326575401,1715115377196,-234.69981702,0.00011684,2]
[326575402,1715115377221,-1052.05964256,0.00011783,2]
[326575403,1715115377247,-711.54040194,0.00011784,2]
[326575404,1715115377273,-200.64558336,0.00011785,2]
[326575405,1715115377299,-155.0,0.00011785,2]
[326575406,1715115377324,-150.0,0.00011787,2]
[326575407,1715115377350,-329.08,0.00011858,2]
[326575408,1715115377376,-250.0,0.00011983,2]
[326575409,1715115390755,174.98,0.000119,2]
[326575410,1715115391334,150.0,0.000119,2]
[326575411,1715115446488,15001.17923307,0.00012,2]
[326575412,1715115472122,200.0,0.00011844,2]
[326575413,1715115474777,298.53572696,0.00012,2]
[326575414,1715115477328,547.73087551,0.000119,2]
[326575416,1715115483104,179.93576879,0.00012,2]
[326575417,1715115487586,179.93576879,0.00012,2]
[326575418,1715115493261,547.11714301,0.00012,2]
[326575419,1715115496774,298.53572696,0.00012,2]
[326575420,1715115514780,298.53572696,0.00012,2]
[326575423,1715115523602,179.93576879,0.00012,2]
[326575427,1715115534787,298.53572696,0.00012,2]
[326575429,1715115543603,233.12723732,0.00012,2]
[326575433,1715115550796,323.70320676,0.00012,2]
[326575434,1715115556436,3658.02,0.00011792,2]
[326575440,1715115608260,200.0,0.00011776,2]
[326575441,1715115617999,1125.36975258,0.00011925,2]
[326575442,1715115639175,14646.9,0.00011648,2]
[326575443,1715115659539,1296.05469541,0.00011421,2]
[326575444,1715115680043,1137.40395601,0.00011421,2]
[326575445,1715115695031,23900.0,0.00011568,2]
[326575447,1715115725790,650.97,0.00011568,2]
[326575449,1715115801962,150.0,0.00011562,2]
[326575450,1715115802981,1135.3087,0.00011921,2]
[326575451,1715115803348,250.0,0.00011562,2]
[326575452,1715115809581,877.30141896,0.00011924,2]
[326575453,1715115811770,11177.7439,0.00011924,2]
[326575454,1715115814373,164.24,0.00011489,2]
[326575455,1715115822593,37293.92568395,0.00011901,2]
[326575456,1715115847631,269687.05226355,0.00011924,2]
[326575476,1715116232822,-155.0,9.229e-05,2]
[326575477,1715116232836,-2120.48656386,9.229e-05,2]
[326575478,1715116232850,-2235.63348036,9.229e-05,2]
[326575479,1715116232864,-1133.16129937,9.229e-05,2]
[326575480,1715116236504,-65.96270442,9.229e-05,2]
[326575482,1715116236516,-361.06087607,9.23e-05,2]
[326575484,1715116236527,-167.63437116,9.23e-05,2]
[326575486,1715116236538,-4736.48162627,9.23e-05,2]
[326575488,1715116236549,-4421.03246962,9.23e-05,2]
[326575490,1715116236560,-361.06087606,9.231e-05,2]
[326575492,1715116236571,-1212.58742416,9.231e-05,2]
[326575494,1715116236582,-150.0,9.234e-05,2]
[326575496,1715116236593,-7288.3114396,9.258e-05,2]
[326575498,1715116236604,-23900.0,0.00010296,2]
[326575500,1715116236615,-277.77,0.00010327,2]
[326575502,1715116236627,-200.0,0.00010416,2]
[326575504,1715116236638,-151.88,0.0001097,2]
[326575506,1715116236648,-151.88,0.00011003,2]
[326575509,1715116236659,-294.15,0.00011003,2]
[326575510,1715116236670,-6096.37,0.00011011,2]
[326575513,1715116236680,-151.88,0.00011037,2]
[326575515,1715116236691,-151.88,0.00011071,2]
[326575517,1715116236704,-151.88,0.00011104,2]
[326575519,1715116236714,-2653.15,0.00011135,2]
[326575521,1715116236725,-151.88,0.00011138,2]
[326575523,1715116236736,-151.88,0.00011172,2]
[326575525,1715116236747,-184.37,0.00011174,2]
[326575527,1715116236759,-151.88,0.00011205,2]
[326575529,1715116236769,-151.88,0.00011239,2]
[326575531,1715116236781,-1352.42,0.00011257,2]
[326575533,1715116236793,-224.99,0.00011257,2]
[326575535,1715116236804,-151.88,0.00011272,2]
[326575537,1715116236816,-151.88,0.00011306,2]
[326575539,1715116236831,-151.88,0.0001134,2]
[326575541,1715116236842,-151.88,0.00011373,2]
[326575544,1715116236853,-151.88,0.00011407,2]
[326575546,1715116236864,-151.88,0.00011441,2]
[326575547,1715116236875,-150.0,0.00011455,2]
[326575549,1715116236886,-151.88,0.00011474,2]
[326575551,1715116236897,-151.88,0.00011508,2]
[326575553,1715116236908,-151.88,0.00011541,2]
[326575556,1715116236920,-5146.09880585,0.000118,2]
[326575558,1715116236930,-300.0,0.000118,4]
[326575560,1715116236941,-966.82432452,0.00011822,2]
[326575592,1715116237290,-578.5596183,0.00011822,2]
[326575593,1715116237303,-3760.67145718,0.00011822,2]
[326575594,1715116237314,-254.41192475,0.00011824,2]
[326575595,1715116237324,-989.15661807,0.00011824,2]
[326575596,1715116237336,-765.44621981,0.00011824,2]
[326575597,1715116237347,-700.0,0.000119,4]
[326575598,1715116237358,-3637.474883,0.00011922,2]
[326575599,1715116237369,-372710.74492293,0.00011923,2]
[326575600,1715116237382,-22403.27229486,0.00011923,2]
[326575601,1715116237394,-23310.22619412,0.00011923,2]
[326575602,1715116237407,-2274.26238943,0.00011923,2]
[326575603,1715116237419,-1178.45951756,0.00011923,2]
[326575604,1715116237431,-182292.89820819,0.00011923,2]
[326575605,1715116237443,-4611.58520454,0.00011923,2]
[326575606,1715116237455,-10143.62111693,0.00011923,2]
[326576030,1715116241389,-316.463147,9.232e-05,2]
[326576033,1715116241401,-44.59772906,9.232e-05,2]
[326576035,1715116241413,-240.24,0.00011912,2]
[326576037,1715116241423,-302.91594887,0.00011923,2]
[326576039,1715116241435,-500.0008285,0.00011923,2]
[326576042,1715116241448,-67566.27171979,0.00011923,2]
[326576044,1715116241458,-549782.88433645,0.00011924,2]
[326576046,1715116241468,-1291.3552,0.00011924,2]
[326576048,1715116241478,-15043.99545481,0.00012,2]
[326576050,1715116241488,-11440.62743744,0.00012,2]
[326576052,1715116241499,-155.26575215,0.00012022,2]
[326576054,1715116241509,-155.0,0.00012022,2]
[326576057,1715116241521,-239.42577122,0.00012022,2]
[326576059,1715116241533,-265.54809514,0.00012022,2]
[326576061,1715116241543,-524.35878934,0.00012022,2]
[326576063,1715116241554,-317.4316254,0.00012023,2]
[326576065,1715116241564,-3681.70299944,0.00012023,2]
[326576067,1715116241574,-1641.357,0.00012024,2]
[326576069,1715116241583,-109477.870467,0.00012025,2]
[326576071,1715116241594,-155.89396625,0.00012025,2]
[326576073,1715116241604,-254.41192471,0.00012043,2]
[326576075,1715116241615,-577.54,0.00012055,2]
[326576077,1715116241625,-167.17,0.00012061,2]
[326576079,1715116241636,-175.3,0.00012151,2]
[326576081,1715116241646,-254.41192471,0.00012262,2]
[326576083,1715116241657,-269.33,0.00012399,2]
[326576085,1715116241668,-276.156,0.00012399,2]
[326576087,1715116241679,-254.41192471,0.00012481,2]
[326576089,1715116241690,-252.02181648,0.000125,2]
[326576091,1715116241699,-184.37,0.00012571,2]
[326576093,1715116241710,-1100.0,0.000126,4]
[326576095,1715116241720,-3500.3496962,0.00012649,2]
[326576097,1715116241730,-164.27,0.00012693,2]
[326576099,1715116241741,-6787.6748,0.00012699,2]
[326576101,1715116241751,-152.71864669,0.000127,2]
[326576103,1715116241761,-173.77373168,0.000127,2]
[326576105,1715116241770,-166.45534,0.000127,2]
[326576107,1715116241780,-3215.07194606,0.000127,2]
[326576109,1715116241790,-254.41192471,0.000127,2]
[326576111,1715116241801,-1500.0,0.000127,4]
[326576113,1715116241811,-406.5353,0.00012767,2]
[326576115,1715116241824,-558.78782629,0.00012786,2]
[326576117,1715116241833,-159.6029597,0.00012797,2]
[326576119,1715116241844,-520.78958345,0.00012797,2]
[326576121,1715116241854,-1245.86175718,0.00012797,2]
[326576123,1715116241864,-748.57599329,0.00012797,2]
[326576125,1715116241875,-217.13620234,0.00012797,2]
[326576127,1715116241886,-372.66134927,0.00012797,2]
[326576129,1715116241896,-335.36806641,0.00012797,2]
[326576131,1715116241915,-511.25508557,0.00012797,2]
[326576133,1715116241927,-894.30025173,0.00012797,2]
[326576135,1715116241938,-255.5627634,0.00012797,2]
[326576137,1715116241949,-798.99537989,0.00012797,2]
[326576139,1715116241960,-156.0846489,0.00012797,2]
[326576141,1715116241970,-709.85225591,0.00012797,2]
[326576143,1715116241981,-208.17791052,0.00012797,2]
[326576145,1715116241992,-155.0,0.00012797,2]
[326576147,1715116242003,-155.54694532,0.00012798,2]
[326576149,1715116242015,-35281.73279653,0.00012798,2]
[326576151,1715116242027,-1955.0239,0.00012799,2]
[326576153,1715116242037,-498908.4993,0.000128,2]
[326576155,1715116242048,-1800.0,0.000128,4]
[326576158,1715116242058,-732.49371917,0.000128,2]
[326576160,1715116242070,-199.10945753,0.000128,2]
[326576162,1715116242079,-315.06810533,0.00012895,2]
[326576163,1715116242092,-161.02195853,0.00012895,2]
[326576165,1715116242101,-155.0,0.00012895,2]
[326576167,1715116242112,-202.9117628,0.00012896,2]
[326576169,1715116242123,-155.85062154,0.00012897,2]
[326576172,1715116242133,-706.86968625,0.00012897,2]
[326576173,1715116242145,-157.51876589,0.00012897,2]
[326576176,1715116242155,-237.17351593,0.00012897,2]
[326576178,1715116242166,-207.05329635,0.00012898,2]
[326576179,1715116242177,-155.0,0.00012898,2]
[326576182,1715116242188,-4270.37766422,0.00012898,2]
[326576184,1715116242198,-1000.0,0.00012898,2]
[326576185,1715116242207,-2266.21413518,0.00012898,2]
[326576188,1715116242217,-168.1135179,0.00012898,2]
[326576190,1715116242227,-3090.25486695,0.00012898,2]
[326576192,1715116242236,-323.79914288,0.00012899,2]
[326576193,1715116242246,-1000.0,0.00012899,2]
[326576195,1715116242256,-1564730.17544278,0.000129,2]
[326576197,1715116242266,-155.0,0.000129,2]
[326576200,1715116242276,-2000.0,0.000129,2]
[326576202,1715116242286,-200.0,0.000129,2]
[326576203,1715116242296,-300.0,0.000129,4]
[326576205,1715116242306,-762.6322805,0.000129,2]
[326576207,1715116242316,-2661.17535,0.000129,2]
[326576209,1715116242326,-762.63228045,0.00012935,2]
[326576211,1715116242336,-150.63,0.0001299,2]
[326576214,1715116242346,-150.63,0.0001299,2]
[326576216,1715116242356,-150.63,0.0001299,2]
[326576218,1715116242369,-150.63,0.0001299,2]
[326576219,1715116242379,-150.63,0.0001299,2]
[326576222,1715116242389,-150.63,0.0001299,2]
[326576223,1715116242399,-150.63,0.0001299,2]
[326576226,1715116242409,-150.63,0.0001299,2]
[326576228,1715116242420,-150.63,0.0001299,2]
[326576230,1715116242430,-150.63,0.0001299,2]
[326576232,1715116242441,-150.63,0.0001299,2]
[326576234,1715116242452,-150.63,0.0001299,2]
[326576235,1715116242463,-150.63,0.0001299,2]
[326576237,1715116242473,-150.63,0.0001299,2]
[326576240,1715116242483,-150.63,0.0001299,2]
[326576242,1715116242493,-150.63,0.0001299,2]
[326576243,1715116242503,-3543307.32927883,0.00013,2]
[326576246,1715116242513,-10133.0,0.00013007,2]
[326576249,1715116242534,-650.97,0.00013015,2]
[326576251,1715116242545,-2000.0,0.00013029,2]
[326576253,1715116242556,-200.0,0.00013029,2]
[326576255,1715116242566,-217.84,0.00013151,2]
[326576257,1715116242576,-317.87,0.00013151,2]
[326576259,1715116242586,-264.89,0.00013151,2]
[326576261,1715116242596,-220.74,0.00013151,2]
[326576263,1715116242608,-183.95,0.00013151,2]
[326576265,1715116242617,-153.29,0.00013151,2]
[326576267,1715116242627,-766.48,0.00013151,2]
[326576292,1715116242637,-2000.0,0.00013159,2]
[326576295,1715116242900,-200.0,0.00013159,2]
[326576297,1715116242912,-2000.0,0.00013291,2]
[326576299,1715116242923,-200.0,0.00013291,2]
[326576301,1715116242932,-160.55,0.00013425,2]
[326576303,1715116242942,-520.94,0.00013425,2]
[326576305,1715116242951,-155.28423227,0.000136,2]
[326576307,1715116242961,-3215.07194604,0.00013627,2]
[326576309,1715116242970,-12278.56,0.00013699,2]
[326576311,1715116242980,-2751.0,0.00013699,2]
[326576313,1715116242989,-200.0,0.00013699,2]
[326576315,1715116242999,-500.0,0.00013699,2]
[326576317,1715116243009,-6096.37,0.00013751,2]
[326576319,1715116243020,-174.98,0.00013883,2]
[326576321,1715116243030,-184.37,0.00013967,2]
[326576323,1715116243040,-192.06864449,0.00014,2]
[326576325,1715116243049,-281.94220496,0.00014,2]
[326576327,1715116243061,-12736.57642091,0.00014,2]
[326576329,1715116243071,-762.63228045,0.00014046,2]
[326576331,1715116243080,-174.97,0.00014216,2]
[326576333,1715116243091,-164.24,0.00014361,2]
[326576335,1715116243100,-152.71864665,0.000144,2]
[326576337,1715116243109,-650.97,0.00014461,2]
[326576339,1715116243120,-166.023356,0.00014521,2]
[326576341,1715116243129,-3215.07194604,0.00014555,2]
[326576343,1715116243139,-173.77373167,0.00014568,2]
[326576345,1715116243148,-167.17,0.0001462,2]
[326576347,1715116243158,-150.63,0.0001499,2]
[326576349,1715116243168,-1880.65275733,0.00014998,2]
[326576351,1715116243178,-1766.58789095,0.00015,2]
[326576353,1715116243188,-259.44115044,0.00015,2]
[326576355,1715116243198,-155.00408411,0.00015,2]
[326576357,1715116243208,-271.53173344,0.00015,2]
[326576359,1715116243218,-31292.0,0.00015,2]
[326576361,1715116243228,-618.22068598,0.00015,2]
[326576363,1715116243238,-300.0,0.00015068,2]
[326576365,1715116243249,-762.63228045,0.00015157,2]
[326576367,1715116243259,-166.023356,0.00015342,2]
[326576369,1715116243269,-184.37,0.00015364,2]
[326576371,1715116243279,-3215.07194604,0.00015482,2]
[326576373,1715116243290,-17699.0,0.000155,3]
[326576375,1715116243300,-167.0,0.00015831,2]
[326576377,1715116243310,-167.0,0.00015831,2]
[326576379,1715116243320,-174.98,0.00015866,2]
[326576381,1715116243330,-650.97,0.00015907,2]
[326576383,1715116243341,-167.0,0.00015917,2]
[326576385,1715116243351,-551.86154387,0.00016,2]
[326576388,1715116243363,-781.6756597,0.00016,2]
[326576389,1715116243373,-17699.0,0.00016,5]
[326576391,1715116243382,-152.71864665,0.000161,2]
[326576394,1715116243392,-4751.79,0.00016116,2]
[326576395,1715116243402,-153.56806668,0.0001613,2]
[326576398,1715116243413,-166.023356,0.00016164,2]
[326576400,1715116243423,-159.17705713,0.00016235,2]
[326576402,1715116243433,-174.97,0.00016247,2]
[326576403,1715116243442,-762.63228045,0.00016267,2]
[326576405,1715116243451,-3215.07194604,0.00016409,2]
[326576407,1715116243462,-173.77373167,0.00016437,2]
[326576409,1715116243472,-242.19420022,0.00016438,2]
[326576411,1715116243482,-300.0,0.00016438,2]
[326576413,1715116243492,-1037.38,0.00016438,2]
[326576415,1715116243502,-6096.37,0.00016491,2]
[326576417,1715116243513,-1225.64253151,0.000165,2]
[326576420,1715116243522,-175.46,0.00016712,2]
[326576421,1715116243532,-184.37,0.00016761,2]
[326576424,1715116243542,-178.28774648,0.000169,2]
[326576426,1715116243556,-166.023356,0.00016986,2]
[326576428,1715116243566,-1749.0834379,0.00017,2]
[326576430,1715116243576,-178.12671426,0.00017051,2]
[326576432,1715116243586,-13369.0,0.00017093,2]
[326576434,1715116243597,-167.0,0.00017137,2]
[326576436,1715116243607,-167.0,0.00017137,2]
[326576438,1715116243617,-167.0,0.00017231,2]
[326576441,1715116243627,-164.24,0.00017233,2]
[326576443,1715116243637,-780.68199828,0.00017258,2]
[326576445,1715116243647,-781.33467767,0.00017258,2]
[326576447,1715116243657,-279.92696687,0.00017309,2]
[326576449,1715116243667,-3215.07194604,0.00017336,2]
[326576451,1715116243677,-732.49371915,0.0001734,2]
[326576453,1715116243687,-650.97,0.00017353,2]
[326576455,1715116243697,-762.63228045,0.00017378,2]
[326576457,1715116243706,-153.56806668,0.00017685,2]
[326576459,1715116243717,-750.17982827,0.00017752,2]
[326576461,1715116243726,-152.71864665,0.000178,2]
[326576463,1715116243736,-166.023356,0.00017808,2]
[326576465,1715116243746,-174.98,0.0001785,2]
[326576467,1715116243756,-150.63,0.0001787,2]
[326576469,1715116243767,-748.83987818,0.0001788,2]
[326576471,1715116243777,-748.83987816,0.0001788,2]
[326576473,1715116243786,-748.83987816,0.0001788,2]
[326576475,1715116243796,-748.83987816,0.0001788,2]
[326576477,1715116243806,-748.83987816,0.0001788,2]
[326576479,1715116243816,-3932.3142628,0.0001788,2]
[326576481,1715116243828,-3932.31426273,0.0001788,2]
[326576483,1715116243838,-3932.31426273,0.0001788,2]
[326576485,1715116243848,-3932.31426273,0.0001788,2]
[326576487,1715116243858,-3932.31426273,0.0001788,2]
[326576489,1715116243869,-2661.17536,0.000179,2]
[326576491,1715116243878,-748.83987816,0.00017977,2]
[326576493,1715116243888,-3932.31426273,0.00017977,2]
[326576495,1715116243899,-750.0,0.00018,3]
[326576497,1715116243909,-681.0,0.00018203,2]
[326576499,1715116243919,-3215.07194604,0.00018264,2]
[326576501,1715116243929,-174.97,0.00018278,2]
[326576503,1715116243939,-173.77373167,0.00018305,2]
[326576505,1715116243948,-167.0,0.00018444,2]
[326576507,1715116243958,-167.0,0.00018444,2]
[326576509,1715116243968,-762.63228045,0.00018489,2]
[326576511,1715116243978,-167.0,0.00018545,2]
[326576513,1715116243988,-166.023356,0.0001863,2]
[326576515,1715116243997,-194.00301164,0.00019,2]
[326576517,1715116244007,-178.12671426,0.00019106,2]
[326576519,1715116244017,-150.63,0.00019168,2]
[326576521,1715116244026,-420.73998193,0.00019178,2]
[326576523,1715116244036,-500.0,0.00019178,2]
[326576525,1715116244045,-500.0,0.00019178,2]
[326576527,1715116244055,-500.0,0.00019178,2]
[326576529,1715116244064,-500.0,0.00019178,2]
[326576531,1715116244074,-642.66,0.00019178,2]
[326576533,1715116244083,-500.0,0.00019178,2]
[326576535,1715116244093,-500.0,0.00019178,2]
[326576537,1715116244103,-500.0,0.00019178,2]
[326576539,1715116244113,-641.34,0.00019178,2]
[326576541,1715116244122,-500.0,0.00019178,2]
[326576543,1715116244132,-500.0,0.00019178,2]
[326576545,1715116244143,-500.0,0.00019178,2]
[326576547,1715116244152,-591.3,0.00019178,2]
[326576549,1715116244163,-500.0,0.00019178,2]
[326576551,1715116244173,-500.0,0.00019178,2]
[326576553,1715116244182,-500.0,0.00019178,2]
[326576555,1715116244192,-500.0,0.00019178,2]
[326576556,1715116244202,-581.54,0.00019178,2]
[326576557,1715116244211,-500.0,0.00019178,2]
[326576558,1715116244221,-500.0,0.00019178,2]
[326576559,1715116244231,-500.0,0.00019178,2]
[326576560,1715116244241,-500.0,0.00019178,2]
[326576561,1715116244250,-500.0,0.00019178,2]
[326576562,1715116244261,-500.0,0.00019178,2]
[326576563,1715116244272,-500.0,0.00019178,2]
[326576564,1715116244281,-500.0,0.00019178,2]
[326576565,1715116244291,-500.0,0.00019178,2]
[326576566,1715116244301,-500.0,0.00019178,2]
[326576567,1715116244311,-500.0,0.00019178,2]
[326576569,1715116244321,-500.0,0.00019178,2]
[326576571,1715116244332,-500.0,0.00019178,2]
[326576573,1715116244342,-500.0,0.00019178,2]
[326576575,1715116244352,-500.0,0.00019178,2]
[326576577,1715116244364,-548.44,0.00019178,2]
[326576579,1715116244374,-500.0,0.00019178,2]
[326576581,1715116244384,-500.0,0.00019178,2]
[326576583,1715116244394,-500.0,0.00019178,2]
[326576585,1715116244404,-500.0,0.00019178,2]
[326576588,1715116244415,-500.0,0.00019178,2]
[326576590,1715116244425,-500.0,0.00019178,2]
[326576592,1715116244436,-500.0,0.00019178,2]
[326576594,1715116244446,-500.0,0.00019178,2]
[326576596,1715116244456,-500.0,0.00019178,2]
[326576598,1715116244466,-168.07773832,0.00019178,2]
[326576600,1715116244477,-500.0,0.00019178,2]
[326576602,1715116244487,-500.0,0.00019178,2]
[326576604,1715116244499,-500.0,0.00019178,2]
[326576606,1715116244509,-500.0,0.00019178,2]
[326576608,1715116244520,-500.0,0.00019178,2]
[326576610,1715116244530,-500.0,0.00019178,2]
[326576612,1715116244540,-500.0,0.00019178,2]
[326576614,1715116244550,-500.0,0.00019178,2]
[326576616,1715116244560,-500.0,0.00019178,2]
[326576618,1715116244571,-500.0,0.00019178,2]
[326576620,1715116244582,-500.0,0.00019178,2]
[326576622,1715116244592,-500.0,0.00019178,2]
[326576624,1715116244605,-160.7437112,0.00019178,2]
[326576626,1715116244615,-500.0,0.00019178,2]
[326576628,1715116244626,-500.0,0.00019178,2]
[326576630,1715116244638,-500.0,0.00019178,2]
[326576632,1715116244648,-500.0,0.00019178,2]
[326576634,1715116244659,-500.0,0.00019178,2]
[326576636,1715116244669,-500.0,0.00019178,2]
[326576639,1715116244682,-500.0,0.00019178,2]
[326576641,1715116244698,-500.0,0.00019178,2]
[326576644,1715116244712,-500.0,0.00019178,2]
[326576646,1715116244726,-500.0,0.00019178,2]
[326576648,1715116244741,-500.0,0.00019178,2]
[326576651,1715116244752,-500.0,0.00019178,2]
[326576653,1715116244766,-500.0,0.00019178,2]
[326576655,1715116244779,-500.0,0.00019178,2]
[326576657,1715116244792,-500.0,0.00019178,2]
[326576660,1715116244806,-504.8956254,0.00019178,2]
[326576662,1715116244821,-500.0,0.00019178,2]
[326576664,1715116244834,-500.0,0.00019178,2]
[326576666,1715116244848,-500.0,0.00019178,2]
[326576669,1715116244863,-500.0,0.00019178,2]
[326576671,1715116244878,-500.0,0.00019178,2]
[326576673,1715116244891,-581.84,0.00019178,2]
[326576676,1715116244904,-500.0,0.00019178,2]
[326576678,1715116244918,-500.0,0.00019178,2]
[326576680,1715116244932,-500.0,0.00019178,2]
[326576683,1715116244947,-500.0,0.00019178,2]
[326576685,1715116244961,-500.0,0.00019178,2]
[326576687,1715116244973,-500.0,0.00019178,2]
[326576689,1715116244986,-500.0,0.00019178,2]
[326576691,1715116244997,-500.0,0.00019178,2]
[326576694,1715116245009,-500.0,0.00019178,2]
[326576696,1715116245023,-500.0,0.00019178,2]
[326576698,1715116245037,-500.0,0.00019178,2]
[326576700,1715116245050,-1002.80210193,0.00019178,2]
[326576703,1715116245064,-500.0,0.00019178,2]
[326576705,1715116245077,-500.0,0.00019178,2]
[326576707,1715116245091,-500.0,0.00019178,2]
[326576710,1715116245105,-500.0,0.00019178,2]
[326576712,1715116245119,-500.0,0.00019178,2]
[326576714,1715116245134,-500.0,0.00019178,2]
[326576716,1715116245145,-500.0,0.00019178,2]
[326576718,1715116245157,-500.0,0.00019178,2]
[326576721,1715116245169,-500.0,0.00019178,2]
[326576723,1715116245180,-500.0,0.00019178,2]
[326576725,1715116245195,-500.0,0.00019178,2]
[326576727,1715116245208,-500.0,0.00019178,2]
[326576730,1715116245222,-500.0,0.00019178,2]
[326576732,1715116245234,-396.12287452,0.00019178,2]
[326576734,1715116245245,-500.0,0.00019178,2]
[326576736,1715116245258,-500.0,0.00019178,2]
[326576738,1715116245270,-500.0,0.00019178,2]
[326576741,1715116245286,-500.0,0.00019178,2]
[326576743,1715116245298,-500.0,0.00019178,2]
[326576745,1715116245309,-500.0,0.00019178,2]
[326576747,1715116245321,-500.0,0.00019178,2]
[326576750,1715116245333,-500.0,0.00019178,2]
[326576752,1715116245345,-476.17,0.00019178,2]
[326576754,1715116245362,-500.0,0.00019178,2]
[326576756,1715116245376,-500.0,0.00019178,2]